fUST/lending_fUST_20250619
["ID","MTS","AMOUNT","RATE_DAILY","PERIOD"]
[366550950,1750318239199,-460.0,0.00021917,6]
[366550951,1750318239209,-460.0,0.00021917,6]
[366550952,1750318239218,-460.0,0.00021917,6]
[366550953,1750318239227,-369.99821626,0.00021917,6]
[366550954,1750318239237,-460.0,0.00021917,6]
[366550955,1750318239247,-460.0,0.00021917,6]
[366550956,1750318239256,-460.0,0.00021917,6]
[366550957,1750318239266,-460.0,0.00021917,2]
[366550958,1750318239275,-410.0,0.00021917,6]
[366550959,1750318239285,-416.64133691,0.00021917,6]
[366550960,1750318239295,-460.0,0.00021917,6]
[366550961,1750318239305,-319.83038736,0.00021917,6]
[366550962,1750318239314,-463.07517441,0.00021917,6]
[366550963,1750318239324,-460.0,0.00021917,6]
[366550964,1750318239334,-209.15449928,0.00021917,6]
[366550965,1750318239344,-196.50840537,0.00021917,6]
[366550966,1750318239353,-460.0,0.00021917,6]
[366550967,1750318239363,-160.0,0.00021917,6]
[366550968,1750318239373,-460.0,0.00021917,6]
[366550969,1750318239383,-440.0,0.00021917,6]
[366550970,1750318239393,-360.0,0.00021917,6]
[366550971,1750318239403,-460.0,0.00021917,6]
[366550972,1750318239413,-430.0,0.00021917,6]
[366550973,1750318239422,-460.0,0.00021917,6]
[366550974,1750318239431,-460.0,0.00021917,6]
[366550975,1750318239441,-460.0,0.00021917,6]
[366550976,1750318239451,-460.0,0.00021917,6]
[366550977,1750318239461,-460.0,0.00021917,6]
[366550978,1750318239470,-460.0,0.00021917,6]
[366550979,1750318239480,-460.0,0.00021917,6]
[366550980,1750318239492,-460.0,0.00021917,6]
[366550981,1750318239503,-541.19,0.00021917,6]
[366550982,1750318239513,-498.5,0.00021917,6]
[366550983,1750318239522,-460.0,0.00021917,6]
[366550984,1750318239532,-460.0,0.00021917,6]
[366550985,1750318239542,-450.54725187,0.00021917,6]
[366550986,1750318239553,-460.0,0.00021917,6]
[366550987,1750318239563,-460.0,0.00021917,6]
[366550988,1750318239573,-444.01645113,0.00021917,6]
[366550989,1750318239583,-372.0811164,0.00021917,6]
[366551034,1750318243110,-87.9188836,0.00021917,6]
[366551036,1750318243119,-409.68981604,0.00021917,6]
[366551038,1750318243128,-1488.98,0.00021917,6]
[366551040,1750318243138,-378.50239098,0.00021917,6]
[366551042,1750318243147,-460.0,0.00021917,6]
[366551044,1750318243157,-460.0,0.00021917,6]
[366551046,1750318243166,-460.0,0.00021917,6]
[366551048,1750318243176,-332.42563371,0.00021917,6]
[366551050,1750318243187,-460.0,0.00021917,6]
[366551052,1750318243196,-412.53466667,0.00021917,6]
[366551054,1750318243205,-460.0,0.00021917,6]
[366551056,1750318243214,-460.0,0.00021917,6]
[366551058,1750318243223,-202.24794524,0.00021917,6]
[366551060,1750318243233,-460.0,0.00021917,6]
[366551062,1750318243243,-460.0,0.00021917,6]
[366551064,1750318243252,-460.0,0.00021917,6]
[366551066,1750318243262,-460.0,0.00021917,6]
[366551068,1750318243271,-460.0,0.00021917,6]
[366551070,1750318243280,-608.97,0.00021917,6]
[366551072,1750318243290,-313.48931798,0.00021917,6]
[366551074,1750318243299,-188.72126539,0.00021917,6]
[366551076,1750318243308,-460.0,0.00021917,6]
[366551078,1750318243317,-460.0,0.00021917,6]
[366551080,1750318243326,-460.0,0.00021917,6]
[366551082,1750318243335,-460.0,0.00021917,6]
[366551084,1750318243344,-460.0,0.00021917,6]
[366551086,1750318243353,-162.27364411,0.00021917,6]
[366551088,1750318243370,-307.72635589,0.00021917,6]
[366551090,1750318243379,-460.0,0.00021917,6]
[366551092,1750318243388,-460.0,0.00021917,6]
[366551094,1750318243397,-460.0,0.00021917,6]
[366551096,1750318243406,-460.0,0.00021917,6]
[366551098,1750318243415,-460.0,0.00021917,6]
[366551100,1750318243425,-460.0,0.00021917,6]
[366551102,1750318243434,-460.0,0.00021917,6]
[366551104,1750318243443,-137.02364311,0.00021917,6]
[366551106,1750318243455,-1200.64197956,0.00021917,6]
[366551148,1750318243854,-1301.02437733,0.00021917,6]
[366551150,1750318243864,-460.0,0.00021917,6]
[366551152,1750318243873,-527.75,0.00021917,6]
[366551154,1750318243883,-460.0,0.00021917,6]
[366551156,1750318243892,-531.8,0.00021917,6]
[366551158,1750318243902,-460.0,0.00021917,6]
[366551160,1750318243911,-380.0,0.00021917,6]
[366551162,1750318243921,-370.05226474,0.00021917,6]
[366551164,1750318243931,-356.47501425,0.00021917,6]
[366551354,1750318246151,-150.52,0.00021907,10]
[366551356,1750318246160,-103.52498575,0.00021917,6]
[366551358,1750318246170,-460.0,0.00021917,6]
[366551360,1750318246179,-105.60336709,0.00021917,6]
[366551363,1750318246191,-354.39663291,0.00021917,6]
[366551365,1750318246201,-460.0,0.00021917,6]
[366551367,1750318246211,-460.0,0.00021917,6]
[366551369,1750318246220,-259.00336709,0.00021917,6]
[366551371,1750318246232,-200.99663291,0.00021917,6]
[366551373,1750318246241,-508.15,0.00021917,6]
[366551375,1750318246251,-669.94383015,0.00021917,6]
[366552543,1750318524529,425.33853567,0.000191,2]
[366552544,1750318533693,2043.0563233,0.000191,2]
[366552545,1750318609739,2844880.03328109,0.00025161,120]
[366552547,1750318708603,493543.0,0.00024658,120]
[366552550,1750319317354,185.13494127,0.0001819,2]
[366552584,1750319432301,-332.99327334,0.000199,2]
[366552586,1750319432311,-304.37,0.00019976,2]
[366552588,1750319432321,-1200.0,0.00019998,2]
[366552590,1750319432331,-300.0,0.00019999,5]
[366552592,1750319432340,-300.0,0.00019999,2]
[366552594,1750319432350,-300.0,0.00019999,2]
[366552596,1750319432360,-300.0,0.00019999,2]
[366552598,1750319432370,-5258.89766934,0.0002,2]
[366552600,1750319432379,-10176.93051074,0.0002,2]
[366552602,1750319432389,-332.9932733,0.00020107,2]
[366552604,1750319432399,-4899.97007017,0.00020314,2]
[366552605,1750319432409,-332.9932733,0.00020314,3]
[366552607,1750319432418,-182.90329547,0.00020472,2]
[366552609,1750319432427,-332.9932733,0.00020521,3]
[366552611,1750319432436,-500.0,0.00020571,2]
[366552613,1750319432446,-500.0,0.00020571,2]
[366552615,1750319432455,-500.0,0.00020571,2]
[366552617,1750319432464,-500.0,0.00020571,2]
[366552619,1750319432474,-500.0,0.00020571,2]
[366552621,1750319432483,-500.0,0.00020571,2]
[366552622,1750319432492,-389.74235399,0.00020571,2]
[366552623,1750319432502,-500.0,0.00020571,2]
[366552624,1750319432511,-500.0,0.00020571,2]
[366552626,1750319432521,-500.0,0.00020571,2]
[366552628,1750319432530,-500.0,0.00020571,2]
[366552629,1750319432539,-500.0,0.00020571,2]
[366552630,1750319432549,-500.0,0.00020571,2]
[366552631,1750319432558,-450.0,0.00020571,2]
[366552632,1750319432568,-500.0,0.00020571,2]
[366552633,1750319432577,-500.0,0.00020571,2]
[366552634,1750319432587,-500.0,0.00020571,2]
[366552635,1750319432597,-550.0,0.00020571,2]
[366552636,1750319432606,-24900.0,0.00020572,2]
[366552637,1750319432615,-153.947,0.00020635,2]
[366552638,1750319432624,-332.9932733,0.00020728,3]
[366552639,1750319432634,-608.74,0.00020927,2]
[366552640,1750319432643,-332.9932733,0.00020934,4]
[366552641,1750319432653,-723.0,0.00020948,2]
[366552642,1750319432662,-182.90329542,0.00021128,2]
[366552643,1750319432672,-332.9932733,0.00021141,4]
[366552644,1750319432681,-500.0,0.00021164,2]
[366552645,1750319432691,-449.0,0.00021246,2]
[366552646,1750319432700,-332.9932733,0.00021348,5]
[366552647,1750319432710,-723.0,0.00021367,2]
[366552648,1750319432720,-449.0,0.00021403,2]
[366552649,1750319432729,-449.0,0.00021494,2]
[366552650,1750319432739,-332.9932733,0.00021555,5]
[366552651,1750319432748,-500.0,0.00021594,2]
[366552652,1750319432757,-160.0,0.00021594,2]
[366552653,1750319432766,-424.78309573,0.00021594,2]
[366552654,1750319432776,-845.93775772,0.00021594,2]
[366552655,1750319432785,-449.0,0.00021607,2]
[366552656,1750319432795,-2169.979251,0.00021759,3]
[366552657,1750319432805,-332.9932733,0.00021762,5]
[366552658,1750319432815,-420.0,0.00021777,2]
[366552659,1750319432825,-420.0,0.00021777,2]
[366552660,1750319432834,-182.90329542,0.00021784,2]
[366552661,1750319432844,-206.79325648,0.0002181,11]
[366552662,1750319432853,-1004.89495244,0.00021817,2]
[366552663,1750319432863,-285.0,0.00021825,2]
[366552664,1750319432872,-913.11,0.00021878,2]
[366552665,1750319432881,-285.0,0.00021879,2]
[366552666,1750319432891,-1525.0,0.0002188,2]
[366552667,1750319432900,-449.0,0.00021883,2]
[366552668,1750319432909,-177.1918157,0.0002189,2]
[366552669,1750319432919,-153.0,0.0002189,2]
[366552670,1750319432928,-159.0225674,0.0002189,2]
[366552671,1750319432938,-153.0,0.0002189,2]
[366552672,1750319432948,-574.3302288,0.0002189,2]
[366552673,1750319432959,-159.0225674,0.0002189,2]
[366552674,1750319432969,-177.1918157,0.0002189,2]
[366552675,1750319432978,-153.0,0.0002189,2]
[366552676,1750319432987,-574.3302288,0.0002189,2]
[366552677,1750319432996,-153.0,0.0002189,2]
[366552678,1750319433006,-153.0,0.0002189,2]
[366552679,1750319433015,-153.0,0.0002189,2]
[366552681,1750319433024,-159.0225674,0.0002189,2]
[366552682,1750319433033,-177.1918157,0.0002189,2]
[366552683,1750319433044,-574.3302288,0.0002189,2]
[366552684,1750319433054,-159.0225674,0.0002189,2]
[366552685,1750319433063,-177.1918157,0.0002189,2]
[366552687,1750319433073,-574.3302288,0.0002189,2]
[366552688,1750319433082,-153.0,0.0002189,2]
[366552689,1750319433091,-153.0,0.0002189,2]
[366552690,1750319433101,-177.1918157,0.0002189,2]
[366552692,1750319433111,-159.0225674,0.0002189,2]
[366552693,1750319433121,-574.3302288,0.0002189,2]
[366552695,1750319433131,-153.0,0.0002189,2]
[366552697,1750319433140,-574.3302288,0.0002189,2]
[366552699,1750319433150,-159.0225674,0.0002189,2]
[366552701,1750319433159,-153.0,0.0002189,2]
[366552703,1750319433169,-177.1918157,0.0002189,2]
[366552704,1750319433179,-159.0225674,0.0002189,2]
[366552706,1750319433188,-177.1918157,0.0002189,2]
[366552707,1750319433198,-574.3302288,0.0002189,2]
[366552709,1750319433207,-153.0,0.0002189,2]
[366552711,1750319433216,-442.3346339,0.0002189,2]
[366552713,1750319433226,-159.0225674,0.0002189,2]
[366552715,1750319433235,-177.1918157,0.0002189,2]
[366552725,1750319433379,-574.3302288,0.0002189,2]
[366552726,1750319433389,-481.04,0.00021907,3]
[366552727,1750319433399,-240.52,0.00021907,3]
[366552728,1750319433409,-200.44,0.00021907,3]
[366552729,1750319433418,-601.32,0.00021907,3]
[366552730,1750319433428,-182.07,0.00021907,10]
[366552731,1750319433438,-151.73,0.00021907,10]
[366552732,1750319433447,-758.66,0.00021907,10]
[366552733,1750319433457,-160.0,0.00021916,2]
[366552734,1750319433467,-460.0,0.00021917,6]
[366552735,1750319433476,-460.0,0.00021917,6]
[366552736,1750319433486,-460.0,0.00021917,6]
[366552737,1750319433495,-463.98790852,0.00021917,6]
[366552738,1750319433505,-460.0,0.00021917,6]
[366552739,1750319433515,-370.0,0.00021917,6]
[366552740,1750319433524,-460.0,0.00021917,6]
[366552741,1750319433533,-340.0,0.00021917,6]
[366552742,1750319433543,-460.0,0.00021917,6]
[366552743,1750319433553,-418.1782681,0.00021917,6]
[366552744,1750319433563,-460.0,0.00021917,6]
[366552745,1750319433572,-460.0,0.00021917,6]
[366552746,1750319433582,-360.0,0.00021917,6]
[366552747,1750319433592,-460.0,0.00021917,6]
[366552748,1750319433602,-460.0,0.00021917,6]
[366552749,1750319433612,-440.0,0.00021917,6]
[366552750,1750319433621,-374.76230551,0.00021917,6]
[366552751,1750319433630,-460.0,0.00021917,6]
[366552752,1750319433639,-441.28812256,0.00021917,6]
[366552753,1750319433649,-474.69207101,0.00021917,6]
[366552754,1750319433658,-460.0,0.00021917,6]
[366552755,1750319433668,-460.0,0.00021917,6]
[366552756,1750319433677,-419.46328513,0.00021917,6]
[366552757,1750319433687,-460.0,0.00021917,6]
[366552758,1750319433696,-383.07615832,0.00021917,6]
[366552759,1750319433706,-319.59771222,0.00021917,6]
[366552760,1750319433715,-606.85596742,0.00021917,6]
[366552761,1750319433725,-351.23316417,0.00021917,6]
[366552762,1750319433734,-305.94169269,0.00021917,6]
[366552763,1750319433744,-460.0,0.00021917,6]
[366552764,1750319433753,-501.076996,0.00021917,6]
[366552765,1750319433763,-460.0,0.00021917,6]
[366552766,1750319433772,-460.0,0.00021917,6]
[366552767,1750319433782,-460.0,0.00021917,6]
[366552768,1750319433792,-460.0,0.00021917,6]
[366552769,1750319433802,-212.67411085,0.00021917,6]
[366552770,1750319433812,-460.0,0.00021917,6]
[366552771,1750319433822,-460.0,0.00021917,6]
[366552772,1750319433831,-460.0,0.00021917,6]
[366552773,1750319433840,-460.0,0.00021917,6]
[366552774,1750319433850,-460.0,0.00021917,6]
[366552775,1750319433859,-527.33517307,0.00021917,6]
[366552776,1750319433868,-460.0,0.00021917,6]
[366552777,1750319433877,-460.0,0.00021917,6]
[366552778,1750319433887,-441.69530689,0.00021917,6]
[366552779,1750319433896,-442.3166561,0.00021917,6]
[366552780,1750319433905,-460.0,0.00021917,6]
[366552781,1750319433915,-400.0,0.00021917,6]
[366552782,1750319433924,-460.0,0.00021917,6]
[366552783,1750319433934,-460.0,0.00021917,6]
[366552784,1750319433944,-460.0,0.00021917,6]
[366552785,1750319433958,-460.0,0.00021917,6]
[366552786,1750319433967,-460.0,0.00021917,6]
[366552787,1750319433977,-460.0,0.00021917,6]
[366552788,1750319433986,-460.0,0.00021917,6]
[366552789,1750319433999,-660.76,0.00021917,6]
[366552790,1750319434008,-434.79717107,0.00021917,6]
[366552791,1750319434017,-460.0,0.00021917,6]
[366552792,1750319434028,-460.0,0.00021917,6]
[366552793,1750319434037,-544.81730428,0.00021917,6]
[366552794,1750319434047,-396.58582177,0.00021917,6]
[366552795,1750319434057,-460.0,0.00021917,6]
[366552796,1750319434067,-467.55100106,0.00021917,6]
[366552797,1750319434076,-392.06457623,0.00021917,6]
[366552798,1750319434085,-460.0,0.00021917,6]
[366552799,1750319434095,-460.0,0.00021917,6]
[366552800,1750319434104,-460.0,0.00021917,6]
[366552801,1750319434113,-460.0,0.00021917,6]
[366552802,1750319434123,-401.4338651,0.00021917,6]
[366552803,1750319434137,-58.5661349,0.00021917,6]
[366552804,1750319434146,-460.0,0.00021917,6]
[366552805,1750319434156,-460.0,0.00021917,6]
[366552806,1750319434166,-378.40941849,0.00021917,6]
[366552807,1750319434176,-460.0,0.00021917,6]
[366552808,1750319434185,-460.0,0.00021917,6]
[366552809,1750319434194,-460.0,0.00021917,6]
[366552810,1750319434204,-460.0,0.00021917,6]
[366552811,1750319434213,-460.0,0.00021917,6]
[366552812,1750319434222,-460.0,0.00021917,6]
[366552813,1750319434232,-370.0,0.00021917,6]
[366552814,1750319434241,-460.0,0.00021917,6]
[366552815,1750319434251,-157.01384797,0.00021917,6]
[366552816,1750319434263,-302.98615203,0.00021917,6]
[366552817,1750319434273,-460.0,0.00021917,6]
[366552818,1750319434283,-460.0,0.00021917,6]
[366552819,1750319434293,-170.46170455,0.00021917,6]
[366552820,1750319434303,-460.0,0.00021917,6]
[366552821,1750319434313,-264.98772848,0.00021917,6]
[366552822,1750319434323,-460.0,0.00021917,6]
[366552823,1750319434332,-629.79,0.00021917,6]
[366552824,1750319434342,-515.19958667,0.00021917,6]
[366552825,1750319434351,-578.16,0.00021917,6]
[366552826,1750319434361,-460.0,0.00021917,6]
[366552827,1750319434371,-460.0,0.00021917,6]
[366552828,1750319434380,-460.0,0.00021917,6]
[366552829,1750319434389,-460.0,0.00021917,6]
[366552830,1750319434399,-460.0,0.00021917,6]
[366552831,1750319434408,-460.0,0.00021917,6]
[366552832,1750319434418,-460.0,0.00021917,6]
[366552833,1750319434428,-1562.41,0.00021917,6]
[366552834,1750319434437,-398.75196683,0.00021917,6]
[366552835,1750319434445,-460.0,0.00021917,6]
[366552836,1750319434454,-460.0,0.00021917,6]
[366552837,1750319434463,-500.0,0.00021917,6]
[366552838,1750319434472,-410.0,0.00021917,6]
[366552839,1750319434481,-460.0,0.00021917,6]
[366552840,1750319434491,-222.20118883,0.00021917,6]
[366552841,1750319434500,-460.0,0.00021917,6]
[366552842,1750319434509,-460.0,0.00021917,6]
[366552843,1750319434518,-430.0,0.00021917,6]
[366552844,1750319434528,-460.0,0.00021917,6]
[366552845,1750319434538,-460.0,0.00021917,6]
[366552846,1750319434547,-509.63652712,0.00021917,6]
[366552847,1750319434557,-396.00444185,0.00021917,6]
[366552848,1750319434567,-460.0,0.00021917,6]
[366552849,1750319434576,-460.0,0.00021917,6]
[366552850,1750319434585,-460.0,0.00021917,6]
[366552851,1750319434595,-443.45782665,0.00021917,6]
[366552852,1750319434605,-254.85620083,0.00021917,6]
[366552853,1750319434616,-436.45493584,0.00021917,6]
[366552854,1750319434625,-460.0,0.00021917,6]
[366552855,1750319434633,-766.05,0.00021917,6]
[366552856,1750319434642,-375.42242992,0.00021917,6]
[366552857,1750319434651,-460.0,0.00021917,6]
[366552858,1750319434659,-460.0,0.00021917,6]
[366552859,1750319434667,-500.0,0.00021917,6]
[366552860,1750319434676,-500.0,0.00021917,6]
[366552861,1750319434684,-500.0,0.00021917,6]
[366552862,1750319434694,-500.0,0.00021917,6]
[366552863,1750319434703,-500.0,0.00021917,6]
[366552864,1750319434712,-37.68169826,0.00021917,6]
[366553148,1750319443358,-2010.50207394,0.00021237,2]
[366553149,1750319443370,-372.9081978,0.00021237,2]
[366553150,1750319443382,-989.89407342,0.00021237,2]
[366557272,1750319690248,3853.0,0.000191,2]
[366557274,1750319869559,1000.0,0.00024,120]
[366557275,1750319871428,1000.0,0.00024,120]
[366557276,1750319872618,1000.0,0.00024,120]
[366557277,1750319873849,1000.0,0.00024,120]
[366557278,1750319876870,1000.0,0.00024,120]
[366557279,1750319954711,153.0,0.00019,2]
[366557282,1750320302988,200.0,0.00024649,120]
[366557284,1750320443874,1173.58507582,0.000191,2]
[366557285,1750320443899,2610.29353066,0.000191,2]
[366557291,1750320631415,200.0,0.00024027,120]
[366557320,1750320632712,-390.6090662,0.00019819,2]
[366557321,1750320632722,-1324.2021638,0.00019922,2]
[366557322,1750320632732,-302.35434053,0.0002,3]
[366557323,1750320632742,-439.92417046,0.00020372,2]
[366557324,1750320632756,-1000.0,0.0002052,2]
[366557325,1750320632765,-300.0,0.00020714,2]
[366557326,1750320632775,-300.0,0.00020714,2]
[366557327,1750320632784,-210.51923683,0.00020715,2]
[366557328,1750320632794,-191.36253251,0.00020715,2]
[366557329,1750320632803,-500.0,0.00020715,2]
[366557330,1750320632813,-369.65731476,0.00020715,2]
[366557331,1750320632822,-500.0,0.00020715,2]
[366557332,1750320632832,-462.08539284,0.00020715,2]
[366557333,1750320632841,-500.0,0.00020715,2]
[366557334,1750320632850,-367.11097654,0.00020715,2]
[366557335,1750320632860,-153.9472121,0.00020715,2]
[366557336,1750320632870,-11381.31271278,0.00020716,2]
[366557337,1750320632886,-1046.8,0.00020716,2]
[366557338,1750320632897,-8802.39860648,0.00020716,2]
[366557339,1750320632909,-3669.48868074,0.00020716,2]
[366557340,1750320632919,-221.99551563,0.000209,4]
[366557341,1750320632928,-152.41941285,0.000209,2]
[366557342,1750320632939,-281.13,0.00020933,2]
[366557343,1750320632948,-689.84237767,0.00020944,2]
[366557344,1750320632958,-207.4,0.00020944,2]
[366557345,1750320632967,-1000.0,0.00021,21]
[366557346,1750320632977,-153.0,0.00021,3]
[366557347,1750320632987,-156.0,0.00021,2]
[366557348,1750320632996,-147.05821945,0.00021,2]
[366558863,1750320654755,5210.63761256,0.00019,3]
[366562068,1750320689515,-211.53781947,0.00019125,2]
[366562537,1750320694366,-164.79406157,0.00019125,2]
[366563138,1750320700570,-123.66811896,0.00019125,2]
[366563141,1750320700591,-28.17777923,0.00019125,2]
[366565049,1750321787995,1000.0,0.00024,120]
[366565070,1750321832976,-376.91942757,0.00019125,2]
[366565071,1750321832989,-94.9027932,0.00019125,2]
[366565072,1750321832999,-503.84467176,0.00019125,2]
[366565073,1750321833010,-500.0,0.00019911,2]
[366565074,1750321833019,-800.0,0.00020057,2]
[366565075,1750321833029,-300.0,0.00020119,2]
[366565076,1750321833039,-1200.0,0.00020119,2]
[366565077,1750321833049,-300.0,0.0002012,2]
[366565078,1750321833060,-500.0,0.0002012,2]
[366565079,1750321833070,-402.87827322,0.0002012,2]
[366565080,1750321833080,-212.71056651,0.0002012,2]
[366565081,1750321833090,-500.0,0.0002012,2]
[366565082,1750321833100,-500.0,0.0002012,2]
[366565083,1750321833111,-24900.0,0.00020121,2]
[366565085,1750321833122,-153.946,0.00020634,2]
[366565086,1750321833133,-261.92996252,0.000209,4]
[366565087,1750321833142,-290.37,0.00020923,2]
[366565088,1750321833152,-500.0,0.00020959,2]
[366565089,1750321833162,-151.0,0.00020987,2]
[366565090,1750321833172,-5000.0,0.00020987,2]
[366565091,1750321833183,-500.0,0.00020987,2]
[366565092,1750321833193,-500.0,0.00020987,2]
[366565093,1750321833203,-500.0,0.00020987,2]
[366565094,1750321833213,-500.0,0.00020987,2]
[366565095,1750321833223,-500.0,0.00020987,2]
[366565096,1750321833232,-500.0,0.00020987,2]
[366565097,1750321833242,-207.4,0.00020987,2]
[366565098,1750321833252,-500.0,0.00020987,2]
[366565099,1750321833262,-500.0,0.00020987,2]
[366565100,1750321833272,-500.0,0.00020987,2]
[366565101,1750321833282,-500.0,0.00020987,2]
[366565102,1750321833292,-500.0,0.00020987,2]
[366565103,1750321833301,-500.0,0.00020987,2]
[366565104,1750321833311,-500.0,0.00020987,2]
[366565105,1750321833321,-500.0,0.00020987,2]
[366565106,1750321833331,-500.0,0.00020987,2]
[366565107,1750321833341,-500.0,0.00020987,2]
[366565108,1750321833351,-500.0,0.00020987,2]
[366565109,1750321833361,-500.0,0.00020987,2]
[366565110,1750321833372,-500.0,0.00020987,2]
[366565111,1750321833382,-500.0,0.00020987,2]
[366565112,1750321833392,-500.0,0.00020987,2]
[366565113,1750321833402,-500.0,0.00020987,2]
[366565114,1750321833412,-500.0,0.00020987,2]
[366565115,1750321833422,-500.0,0.00020987,2]
[366565116,1750321833432,-500.0,0.00020987,2]
[366565117,1750321833442,-500.0,0.00020987,2]
[366565118,1750321833454,-500.0,0.00020987,2]
[366565119,1750321833465,-500.0,0.00020987,2]
[366565120,1750321833475,-500.0,0.00020987,2]
[366565121,1750321833485,-500.0,0.00020987,2]
[366565122,1750321833495,-500.0,0.00020999,2]
[366565123,1750321833505,-500.0,0.00020999,2]
[366565124,1750321833515,-500.0,0.00020999,2]
[366565125,1750321833529,-500.0,0.00020999,2]
[366565126,1750321833539,-500.0,0.00020999,2]
[366565127,1750321833549,-500.0,0.00020999,2]
[366565128,1750321833560,-500.0,0.00020999,2]
[366565129,1750321833571,-500.0,0.00020999,2]
[366565130,1750321833582,-326.5187152,0.00020999,2]
[366565131,1750321833592,-500.0,0.00020999,2]
[366565132,1750321833603,-500.0,0.00020999,2]
[366565133,1750321833615,-500.0,0.00020999,2]
[366565134,1750321833626,-500.0,0.00020999,2]
[366565135,1750321833637,-159.0225674,0.00021,2]
[366565136,1750321833647,-177.1918157,0.00021,2]
[366565137,1750321833658,-52724.09516375,0.00021,2]
[366565138,1750321833669,-153.0,0.00021,2]
[366565139,1750321833679,-574.3302288,0.00021,2]
[366565140,1750321833689,-177.1918157,0.00021,2]
[366565141,1750321833700,-594.7147467,0.00021,2]
[366565142,1750321833710,-159.0225674,0.00021,2]
[366565143,1750321833720,-159.0225674,0.00021,2]
[366565144,1750321833730,-153.0,0.00021,2]
[366565145,1750321833740,-177.1918157,0.00021,2]
[366565146,1750321833749,-426.4070809,0.00021,2]
[366565147,1750321833760,-159.0225674,0.00021,2]
[366565148,1750321833769,-177.1918157,0.00021,2]
[366565149,1750321833779,-720.49820065,0.00021,2]
[366565150,1750321833789,-292.10195508,0.00021,2]
[366565151,1750321833798,-317.0,0.00021,2]
[366565152,1750321833810,-1000.0,0.00021,21]
[366565153,1750321833820,-261.92996235,0.00021072,4]
[366565154,1750321833829,-177.1918157,0.000211,2]
[366565155,1750321833839,-153.0,0.000211,2]
[366565156,1750321833848,-159.0225674,0.000211,2]
[366565157,1750321833857,-574.3302288,0.000211,2]
[366565158,1750321833867,-159.0225674,0.000211,2]
[366565159,1750321833876,-176.5526112,0.000211,2]
[366565160,1750321833886,-153.0,0.000211,2]
[366565161,1750321833896,-158.7816813,0.000211,2]
[366565162,1750321833905,-500.0,0.00021224,2]
[366565163,1750321833915,-726.0,0.00021224,2]
[366565164,1750321833925,-151.0,0.00021224,2]
[366565165,1750321833935,-151.0,0.00021224,2]
[366565166,1750321833944,-500.0,0.00021224,2]
[366565167,1750321833954,-152.72405164,0.00021224,2]
[366565168,1750321833964,-500.0,0.00021224,2]
[366565169,1750321833973,-152.549003,0.00021237,2]
[366565170,1750321833983,-151.0,0.00021237,2]
[366565171,1750321833992,-151.891711,0.00021237,2]
[366565172,1750321834002,-288.925721,0.00021237,2]
[366565173,1750321834011,-288.925721,0.00021237,2]
[366565174,1750321834021,-153.420821,0.00021237,2]
[366565175,1750321834030,-718.404776,0.00021237,2]
[366565176,1750321834039,-151.0,0.00021237,2]
[366565177,1750321834049,-718.404776,0.00021237,2]
[366565178,1750321834058,-531.506602,0.00021237,2]
[366565179,1750321834068,-531.506602,0.00021237,2]
[366565180,1750321834078,-155.217199,0.00021237,2]